Cogmind - Beta 13 @@@ ROGUE MODE // 2024.05.03 @ 20:30:33 Player: Occam Result: Self-destructed Performance ------------- Evolutions (5) 2500 Regions Visited (23) 4600 Robots Destroyed (551) 2755 Value Destroyed (20341) 20341 Prototype IDs (238) 4760 Alien Tech Used (1) 200 Bonus (13583) 13583 TOTAL SCORE: 48739 Bonus ------- High Alert Combat Kills 4276 Follower Combat Kills 1707 Entered Garrisons 200 Network Hubs Disabled 200 Met Data Miner 300 Used Data Conduit 3000 Destroyed Z-Imprinter 1000 Triggered Deep Caves Wall 500 Exposed GOLEM Chamber 500 Built Enhanced Grunts 300 A7 Reached Mainframe 300 Met R17 at Cetus 500 Pursued by Intercept 1000 Friendly Fire -200 Cogmind --------- Core Integrity 172/1000 Matter 186/300 Energy 379/1100 System Corruption 36% Temperature Cool (0) Movement Walking (100) Location -5/Hub_04(d) Parts ------- > --- POWER (2) -------- Assembled Flux Generator > --- PROPULSION (2) --- Enhanced Biometal Leg Enhanced Biometal Leg > --- UTILITY (11) ----- Assembled Nanovents Assembled Biocell Array Experimental EM Disruption Field GOLEM Unit > --- WEAPON (3) ------- Assembled Focal Cannon > --- INVENTORY (5) ---- Structural Scanner Force Field Authchip [Power] GOLEM Unit Peak State ------------ > --- POWER ------------ Assembled Flux Generator > --- PROPULSION ------- Assembled Alloy Leg Assembled Alloy Leg > --- UTILITY ---------- Assembled Nanovents Assembled Nanovents Assembled Nanovents Huge Storage Unit Assembled Biocell Array Assembled Suspension Frame Assembled Combat Suite Assembled Alloy Armor Assembled Alloy Armor GOLEM Unit > --- WEAPON ----------- Assembled Focal Cannon Assembled Focal Cannon Assembled Focal Cannon > --- INVENTORY -------- Zionite Light DM Reactor Advanced Cooling System Zionite Biocell Zionite Biocell Zionite Biocell Zionite Biocell Structural Scanner Advanced Signal Interpreter Weapon Mount Improved Heavy Armor Plating Centrium Medium Armor Plating Improved Powered Armor Experimental Thermal Shield Force Field Remote Force Field Advanced System Shield Authchip [Power] Authchip [Power] Authchip [Power] Authchip [Armor] Improved Trap Extractor GOLEM Unit Longsword +1 [Rating: 165] Favorites ----------- Power Assembled Flux Generator Engine Heavy Ion Engine Power Core Micro Nuclear Core Reactor Assembled Flux Generator Propulsion Assembled Alloy Leg Treads Armored Treads Leg Assembled Alloy Leg Wheel Compact Wheel Utility Huge Storage Unit Device GOLEM Unit Storage Huge Storage Unit Processor Advanced Targeting Computer Hackware Makeshift Hacking Suite Protection Assembled Alloy Armor Weapon Assembled Focal Cannon Energy Gun Zionite Laser-M Energy Cannon Assembled Focal Cannon Ballistic Gun Improved Assault Rifle Launcher Heavy Rocket Launcher Impact Weapon Power Maul Slashing Weapon Longsword +1 Special Melee Weapon Datajack Build | -11 -10 -10 -9 -9 -8 -8 -8 -7 -7 -7 -7 -7 -6 -6 -6 -6 -6 -5 -5 -5 -5 -5 -5 ------- Run | Yrd Mat Min Mat Min Mat Gar Mat Fac Low Low Zio Dee Pro Fac Low Low Dat Pro Fac Ext Cet Arc Hub Slots Evolved 10 | . . . 2 . 2 . . 2 . . . . . 2 . . . . 2 . . . . Power 1 | . . . . . . . . . . . . . . 1 . . . . . . . . . Propulsion . | . . . . . . . . . . . . . . . . . . . . . . . . Utility 8 | . . . 1 . 2 . . 2 . . . . . 1 . . . . 2 . . . . Weapon 1 | . . . 1 . . . . . . . . . . . . . . . . . . . . Parts Attached 366 | 2 12 17 49 4 52 6 47 38 6 6 6 46 1 14 2 . 5 6 15 9 3 8 12 Power 17 | . 1 1 4 . 2 . 4 1 . . . 3 . . . . . . . . . . 1 Engine 10 | . 1 1 4 . . . 2 1 . . . 1 . . . . . . . . . . . Core 4 | . . . . . 2 . 2 . . . . . . . . . . . . . . . . Reactor 3 | . . . . . . . . . . . . 2 . . . . . . . . . . 1 Propulsion 97 | . 6 7 27 1 25 2 16 8 . . . 3 . . . . . . . . . . 2 Treads 51 | . 4 4 14 . 13 2 9 2 . . . 3 . . . . . . . . . . . Leg 3 | . . . . . 1 . . . . . . . . . . . . . . . . . 2 Wheel 43 | . 2 3 13 1 11 . 7 6 . . . . . . . . . . . . . . . Hover . | . . . . . . . . . . . . . . . . . . . . . . . . Flight . | . . . . . . . . . . . . . . . . . . . . . . . . Utility 153 | 1 3 2 5 . 7 2 11 12 4 4 5 27 1 14 2 . 4 6 15 9 3 8 8 Device 85 | 1 2 1 5 . 2 . 4 4 2 2 3 15 1 6 2 . 3 5 10 6 3 4 4 Storage 4 | . 1 . . . . . . . . . . 1 . 1 . . . . . . . 1 . Processor 7 | . . 1 . . . . 1 2 . . . . . 2 . . . . . . . 1 . Hackware 9 | . . . . . 1 . . 1 . . . . . 4 . . . . 2 . . . 1 Protection 48 | . . . . . 4 2 6 5 2 2 2 11 . 1 . . 1 1 3 3 . 2 3 Artifact . | . . . . . . . . . . . . . . . . . . . . . . . . Weapon 99 | 1 2 7 13 3 18 2 16 17 2 2 1 13 . . . . 1 . . . . . 1 Energy Gun 7 | . . . 1 . . . . . . . . 6 . . . . . . . . . . . Energy Cannon 2 | . . . . . . . . . . . . 1 . . . . . . . . . . 1 Ballistic Gun 56 | 1 2 4 10 1 14 1 11 9 1 . . 2 . . . . . . . . . . . Ballistic Cannon . | . . . . . . . . . . . . . . . . . . . . . . . . Launcher 12 | . . 2 . 2 2 1 . . 1 1 . 3 . . . . . . . . . . . Special Weapon . | . . . . . . . . . . . . . . . . . . . . . . . . Impact Weapon 12 | . . . 1 . 2 . 1 6 . 1 1 . . . . . . . . . . . . Slashing Weapon 2 | . . . . . . . . . . . . 1 . . . . 1 . . . . . . Piercing Weapon . | . . . . . . . . . . . . . . . . . . . . . . . . Special Melee Weapon 8 | . . 1 1 . . . 4 2 . . . . . . . . . . . . . . . Unidentified Prototypes 19 | . 1 . 1 . 2 . . . . 1 2 10 . . . . . . . 1 . . 1 Corrupted Parts 5 | . . 5 . . . . . . . . . . . . . . . . . . . . . System Corruption 16 | . . 16 . . . . . . . . . . . . . . . . . . . . . Parts Lost 51 | . . . . 2 2 . 8 . . . . 11 . 1 . . 2 3 2 2 . . 18 Power 5 | . . . . . 1 . 1 . . . . . . 1 . . . . . . . . 2 Propulsion 5 | . . . . 1 . . 1 . . . . 1 . . . . . . . . . . 2 Utility 29 | . . . . . . . 3 . . . . 10 . . . . 2 2 1 2 . . 9 Weapon 12 | . . . . 1 1 . 3 . . . . . . . . . . 1 1 . . . 5 Highest Loss Streak 6 | . . . . 2 1 . 5 . . . . 5 . 1 . . 1 2 2 1 . . 6 To Critical Strikes . | . . . . . . . . . . . . . . . . . . . . . . . . Average Slot Usage (%) 91 | . 99 99 99 100 99 100 99 99 100 94 85 92 94 88 93 93 81 86 87 83 83 72 81 Engine 4 | . 14 14 11 11 1 . 4 7 7 7 7 6 . . . . . . . . . . . Reactor 2 | . . . . . . . . . . . . . 7 6 6 6 5 5 5 5 5 5 4 Treads 4 | . 15 14 11 11 9 9 9 7 7 7 7 3 . . . . . . . . . . . Leg 5 | . 2 . . . . . . . . . . 7 12 12 12 12 10 11 11 11 11 9 10 Wheel 4 | . 10 13 10 11 8 9 8 6 7 7 7 3 . . . . . . . . . . . Device 13 | . 13 13 11 11 9 . 5 7 14 14 13 14 17 16 12 12 10 16 20 15 20 19 21 Storage 10 | . 14 14 11 11 9 9 9 7 7 7 7 11 14 11 12 12 10 11 11 11 11 12 15 Processor 8 | . . . 11 11 9 9 9 19 15 14 14 10 7 5 6 6 6 6 5 . . . 4 Hackware 5 | . . . . . 6 9 9 10 . . . . . 9 18 18 13 7 10 10 5 1 . Protection 8 | . . . . . 11 18 12 6 14 14 7 14 14 6 6 6 6 5 7 11 12 8 4 Energy Cannon 8 | . . . . . . . . . . . . 10 21 18 18 18 15 17 16 16 16 13 14 Ballistic Gun 10 | . 14 26 32 26 26 23 25 19 21 14 14 1 . . . . . . . . . . . Launcher 1 | . . . . 6 . 3 . . 1 6 4 2 . . . . . . . . . . . Naked Turns . | . . . . . . . . . . . . . . . . . . . . . . . . Heaviest Build 206 | 15 95 95 98 101 107 102 111 120 132 145 145 148 147 177 174 174 177 183 190 206 206 202 197 Greatest Support 80 | 20 40 16 16 16 30 12 16 40 16 16 16 60 60 80 60 60 60 60 60 60 60 60 60 Greatest Overweight (x) 32 | . 5 5 6 6 8 8 9 9 8 9 9 32 2 2 2 2 5 3 3 3 3 3 4 Average Overweight (x) 5 | . 3 5 5 6 7 8 7 6 7 8 7 4 2 1 2 2 2 2 2 3 3 2 2 Largest Inventory Capacity 25 | 8 25 25 25 25 25 25 25 25 25 25 25 25 25 25 25 25 25 25 25 25 25 25 25 Average Capacity 24 | 8 22 25 25 25 25 25 25 25 25 25 25 25 25 24 25 25 25 25 25 25 25 24 24 Most Carried 25 | 7 25 25 25 25 25 25 25 25 25 25 25 25 25 25 25 25 25 25 25 25 25 25 25 Average Carried 24 | 6 18 24 24 24 24 25 24 24 24 24 24 23 24 24 25 24 23 23 23 24 24 24 24 Final Capacity 25 | 8 25 25 25 25 25 25 25 25 25 25 25 25 25 25 25 25 25 25 25 25 25 25 5 Final Carried 25 | 7 24 25 25 24 25 25 25 25 25 25 24 25 25 25 25 25 24 23 24 24 25 25 5 Class Distribution -------------------- 17% | Golem 17% | Gunner 13% | Hacker-Golem 10% | Tank 10% | Trapper-Skirmisher 7% | Hacker-Skirmisher 6% | Mutant 5% | Commander-Golem 4% | Trapper-Mutant Dominant Class ---------------- Mutant | -10/Materials Mutant | -10/Mines Gunner | -9/Materials Gunner | -9/Mines Gunner | -8/Materials Tank | -8/Garrison Gunner | -8/Materials Trapper-Skirmisher | -7/Factory Trapper-Skirmisher | -7/Lower Caves Trapper-Skirmisher | -7/Lower Caves Trapper-Skirmisher | -7/Zion Tank | -7/Deep Caves Tank | -6/Proximity Caves Golem | -6/Factory Hacker-Skirmisher | -6/Lower Caves Hacker-Skirmisher | -6/Lower Caves Hacker-Golem | -6/Data Miner Golem | -5/Proximity Caves Hacker-Golem | -5/Factory Hacker-Golem | -5/Extension Golem | -5/Cetus Commander-Golem | -5/Archives Golem | -5/Hub_04(d) Resources | -11 -10 -10 -9 -9 -8 -8 -8 -7 -7 -7 -7 -7 -6 -6 -6 -6 -6 -5 -5 -5 -5 -5 -5 ----------- Run | Yrd Mat Min Mat Min Mat Gar Mat Fac Low Low Zio Dee Pro Fac Low Low Dat Pro Fac Ext Cet Arc Hub Matter Collected 12176 | 241 557 147 2223 266 1575 172 1796 1120 227 173 2050 752 10 130 21 19 35 65 151 189 30 113 114 Remotely . | . . . . . . . . . . . . . . . . . . . . . . . . Salvage Created 28172 | 131 973 125 2056 190 2516 287 2703 1251 192 33 . 875 188 2415 63 939 204 925 2046 5908 185 480 3487 Parts 1351 | 8 68 12 128 13 148 21 141 62 9 5 . 21 17 139 4 34 6 46 104 192 7 29 137 Haulers Intercepted 30 | . 2 . 6 . 3 . 5 1 . . . . . 2 . . . . . 8 . . 3 Recyclers Shooed 13 | . 2 . 3 3 . . 2 1 . . . . . . . . . . 1 1 . . . Parts Field Recycled . | . . . . . . . . . . . . . . . . . . . . . . . . Retrieved Matter . | . . . . . . . . . . . . . . . . . . . . . . . . Parts Self-Destructed 116 | . . . . . . . . . 9 3 . . 17 . 7 34 . 46 . . . . . Prevented 1 | . . . . . . . . . 1 . . . . . . . . . . . . . . Kills | -11 -10 -10 -9 -9 -8 -8 -8 -7 -7 -7 -7 -7 -6 -6 -6 -6 -6 -5 -5 -5 -5 -5 -5 ------- Run | Yrd Mat Min Mat Min Mat Gar Mat Fac Low Low Zio Dee Pro Fac Low Low Dat Pro Fac Ext Cet Arc Hub Combat Hostiles Destroyed 400 | . 10 5 30 8 34 11 36 14 5 8 . 42 5 31 1 17 3 17 30 49 2 2 40 Guns 132 | . 10 2 30 5 31 2 36 14 1 . . 1 . . . . . . . . . . . Cannons 196 | . . . . . . . . . . . . . 5 31 1 17 3 17 29 49 2 2 40 AOE 67 | . . 3 . 3 3 9 . . 3 8 . 38 . . . . . . . . . . . Classes Destroyed 24 | 2 7 . 2 1 3 . . 1 1 . . 2 1 . . . . 2 . 1 . . 1 Worker 27 | . 6 1 2 . 6 . 4 4 . . . . . 1 . . . . . . . . 3 Builder 27 | . 3 . 2 1 2 . 5 3 . . . . . 4 . . . . 4 2 . . 1 Tunneler 4 | 2 . . . . 1 . . . . . . . . . . . . . . 1 . . . Hauler 30 | . 2 . 6 . 3 . 5 1 . . . . . 2 . . . . . 8 . . 3 Recycler 45 | 1 5 . 5 1 6 . 2 4 . . . . . 3 . . . . 1 14 . . 3 Minesweeper 1 | . . . . . . . . . 1 . . . . . . . . . . . . . . Mechanic 3 | . . . 1 . 1 . . . . . . . . . . . . . . . . . 1 Operator 24 | . 1 . 3 . 3 . 3 2 . . . . . . . . . . 1 1 . 9 1 Drone 2 | . . . . . . . . . . . . . 2 . . . . . . . . . . Watcher 32 | . 3 . 5 . 5 . 5 2 . . . . . 4 . . . . 3 3 1 . 1 Swarmer 67 | . 6 3 7 4 5 4 . . 2 8 . . . 7 . 3 . 6 4 6 . . 2 Saboteur 1 | . . . . . . . . . . . . . . . . . . . . 1 . . . Grunt 154 | . 4 2 15 . 16 2 23 9 . . . . . 12 . 7 . 5 15 23 . . 21 Brawler 13 | . . . . . 2 2 1 . . . . . . 1 . 4 . . . 1 . . 2 Duelist 11 | . . . . . 2 . 3 1 . . . . . . . 1 . . . 2 . . 2 Protector 1 | . . . . . . . . . . . . . . . . . . . . . . . 1 Sentry 53 | . . . 8 . 8 2 8 1 1 . . . 1 5 1 2 . 2 2 6 . 2 4 Demolisher 1 | . . . . . . . . . . . . . . . . . . 1 . . . . . Hunter 21 | . . . . . 1 1 1 . 2 . . . . 3 . . . 2 3 8 . . . Programmer 15 | . . . . . . . . 3 . . . . 2 3 . . . . 4 . . . 3 Behemoth 4 | . . . . . . . . . . . . . . . . . . 1 . 2 . . 1 Cetus Guard 2 | . . . . . . . . . . . . . . . . . . . . . 2 . . Enhanced Grunt 3 | . . . . . . . . . . . . . . . . . 3 . . . . . . Lightning 3 | . . . . . . . . . . . . . . . . . . . . . . . 3 Tracker 2 | . . . . . . . . . . . . . . . . . . . 1 . . . 1 Combat Programmer 1 | . . . . . . . . . . . . . . . . . . . 1 . . . . Z-Technician 4 | . . . . . . . . . . . . 4 . . . . . . . . . . . Assembler 2 | . . . . . . . . . . . . 2 . . . . . . . . . . . Assembled 43 | . . . . 4 . . . . . . . 39 . . . . . . . . . . . Golem 3 | . . . . . . . . . . . . 3 . . . . . . . . . . . Best Kill Streak 38 | 2 6 4 8 4 6 8 7 5 3 4 . 38 2 8 1 7 2 5 5 11 2 4 13 Combat Bots Only 36 | . 4 3 4 4 3 8 4 3 3 4 . 36 2 7 1 7 2 5 4 5 2 1 10 Max Kills in Single Turn 17 | 1 2 2 2 2 3 3 1 2 1 2 . 17 1 2 1 2 1 2 2 2 1 1 2 Gunslinging 1 | . 1 . 1 . 1 . . . . . . . . . . . . . . . . . . Exploded 17 | . . 2 . 2 1 3 . . 1 2 . 17 . . . . . . . . . . . Melee . | . . . . . . . . . . . . . . . . . . . . . . . . Uniques/NPCs Destroyed 1 | . . . . . . . . . . . . 1 . . . . . . . . . . . Z-Imprinter (-7/Deep Caves) Combat | -11 -10 -10 -9 -9 -8 -8 -8 -7 -7 -7 -7 -7 -6 -6 -6 -6 -6 -5 -5 -5 -5 -5 -5 -------- Run | Yrd Mat Min Mat Min Mat Gar Mat Fac Low Low Zio Dee Pro Fac Low Low Dat Pro Fac Ext Cet Arc Hub Hostile Shots Fired 1920 | . 71 14 92 10 121 26 154 86 24 17 . 100 24 146 6 65 6 88 205 260 15 . 390 Missed 586 | . 14 4 23 3 34 5 44 30 11 9 . 30 8 67 4 29 . 29 48 69 5 . 120 Damage Taken 20699 | . 583 110 865 430 1349 294 1779 1015 132 131 . 2123 121 1121 10 329 266 838 1705 1931 150 . 5417 Core 2169 | . 149 23 179 63 166 39 129 32 25 . . 311 9 96 . 25 48 47 171 80 . . 577 Absorbed by Shields 2308 | . . . . . . . . . . . . . . . . . . 310 767 1075 156 . . Redirected to Shielding 339 | . . . . . . . . . . . . 329 10 . . . . . . . . . . Ignored by Resistances 3017 | . . . . . . . . . 64 20 . . 28 231 2 68 7 36 494 617 30 . 1420 Regen/Repaired (Parts) 1165 | . . . 131 . 273 . 327 201 . . . . . . . . . . 47 93 . . 93 Core Remaining (%) 54 | 100 . 31 . 39 . . 39 . . . . . 46 . . . . 74 . . . . . Volleys Fired 1239 | 7 74 10 117 21 116 16 145 61 10 7 . 63 8 133 5 22 6 61 98 129 11 17 102 Largest 3 | 2 2 2 3 3 3 3 3 3 3 1 . 3 3 3 3 3 3 3 3 3 3 3 3 Hottest 101 | 70 70 46 69 82 69 69 73 75 75 39 . 101 75 75 75 75 75 75 75 75 75 75 75 Shots Fired 3042 | 14 148 20 351 45 338 20 433 178 23 7 . 93 24 244 15 66 18 137 209 342 33 51 233 Gun 1576 | 14 148 18 351 37 333 10 433 178 20 . . 34 . . . . . . . . . . . Cannon 1408 | . . . . . . . . . . . . 36 24 244 15 66 18 137 209 342 33 51 233 Launcher 58 | . . 2 . 8 5 10 . . 3 7 . 23 . . . . . . . . . . . Special . | . . . . . . . . . . . . . . . . . . . . . . . . Kinetic 1463 | 7 74 18 351 37 333 10 433 178 20 . . 2 . . . . . . . . . . . Thermal 1488 | 7 74 . . . . . . . . . . 46 24 244 15 66 18 137 209 342 33 51 222 Explosive 58 | . . 2 . 8 5 10 . . 3 7 . 23 . . . . . . . . . . . Electromagnetic 33 | . . . . . . . . . . . . 22 . . . . . . . . . . 11 Robot Hit Streak 46 | 3 13 6 35 9 37 12 22 28 10 3 . 18 4 27 2 14 19 31 31 37 18 6 46 Robot Miss Streak 5 | 2 3 2 4 2 4 1 3 5 3 2 . 4 2 3 . 3 . 5 4 3 2 2 3 Penetration Max 1 | . . . . . . . . . . . . . . . . . . . . . . . 1 Secondary Targets 25 | . 2 . 1 1 8 . 8 4 . . . 1 . . . . . . . . . . . Max Gunslinging Chain 1 | . 1 . 1 1 1 . 1 1 . . . 1 . . . . . . . . . . . Shots Hit Robots 1955 | 7 95 12 234 22 237 12 316 121 14 3 . 55 12 109 2 39 16 57 113 251 24 31 173 Core Hits 946 | 4 43 8 73 20 109 21 117 49 11 11 . 104 5 52 2 20 9 24 48 107 9 19 81 Critical Kills 5 | . . . 1 . 3 . 1 . . . . . . . . . . . . . . . . Critical Parts Destroyed 6 | . . . 3 . . 1 . 2 . . . . . . . . . . . . . . . Critical Strikes 22 | . 6 . 5 . 3 1 1 2 . . . 1 . . . . . . . . . . 3 Burn 6 | . 6 . . . . . . . . . . . . . . . . . . . . . . Destroy 11 | . . . 5 . 3 1 1 1 . . . . . . . . . . . . . . . Corrupt 4 | . . . . . . . . . . . . 1 . . . . . . . . . . 3 Smash 1 | . . . . . . . . 1 . . . . . . . . . . . . . . . Melee Attacks 36 | . . 1 1 . 4 . 1 12 3 1 6 . . . . . 7 . . . . . . Impact 28 | . . . 1 . 4 . 1 12 3 1 6 . . . . . . . . . . . . Slashing 7 | . . . . . . . . . . . . . . . . . 7 . . . . . . Piercing . | . . . . . . . . . . . . . . . . . . . . . . . . Sneak Attacks 6 | . . 1 . . . . . 4 . . . . . . . . 1 . . . . . . Combat Hostiles . | . . . . . . . . . . . . . . . . . . . . . . . . Follow-up Attacks . | . . . . . . . . . . . . . . . . . . . . . . . . Damage Inflicted 66535 | 87 1189 306 3693 606 3833 678 5105 2533 345 841 . 5081 525 5032 101 2052 586 3451 6202 12913 1155 1664 8557 Guns 17413 | 87 1189 155 3693 356 3651 148 5105 2102 170 . . 757 . . . . . . . . . . . Cannons 42470 | . . . . . . . . . . . . 459 525 5032 101 2052 490 3451 6071 12913 1155 1664 8557 Explosions 6263 | . . 151 . 250 182 530 . 160 153 841 . 3865 . . . . . . 131 . . . . Melee 389 | . . . . . . . . 271 22 . . . . . . . 96 . . . . . . Ramming . | . . . . . . . . . . . . . . . . . . . . . . . . Kinetic 16018 | 49 570 155 3693 356 3651 148 5105 2102 170 . . 19 . . . . . . . . . . . Thermal 43555 | 38 619 . . . . . . 160 . . . 936 525 5032 101 2052 490 3451 6170 12913 1155 1664 8249 Explosive 5900 | . . 151 . 250 182 530 . . 153 841 . 3793 . . . . . . . . . . . Electromagnetic 673 | . . . . . . . . . . . . 333 . . . . . . 32 . . . 308 Impact 293 | . . . . . . . . 271 22 . . . . . . . . . . . . . . Slashing 96 | . . . . . . . . . . . . . . . . . 96 . . . . . . Piercing . | . . . . . . . . . . . . . . . . . . . . . . . . Highest Corruption 36 | . . 16 . 8 . . 4 . . . . 2 . 2 1 . . . 4 6 6 5 36 Average Corruption 4 | . . 11 . 8 . . 3 . . . . 1 . 1 1 . . . 2 4 5 2 16 Corruption Purged 16 | . . . . . . . 4 . . . . 2 . 2 1 . . . 1 . 1 5 . Corruption Blocked . | . . . . . . . . . . . . . . . . . . . . . . . . Effects 148 | . . 2 . 17 . . 1 . . . . 8 . 4 2 . . . 4 73 11 6 20 Message Errors 34 | . . . . 6 . . . . . . . 1 . 2 . . . . 2 18 2 . 3 Matter Fused 28 | . . . . 2 . . . . . . . 2 . . . . . . 2 15 1 2 4 Heat Flow Errors 18 | . . . . 1 . . . . . . . . . 1 1 . . . . 11 3 1 . Energy Discharges 21 | . . . . 1 . . . . . . . 2 . . 1 . . . . 7 3 3 4 Parts Rejected 1 | . . . . . . . . . . . . . . . . . . . . . . . 1 Parts Fused 1 | . . . . . . . . . . . . . . . . . . . . 1 . . . Data Loss (minor) 18 | . . 1 . 2 . . 1 . . . . 2 . . . . . . . 7 2 . 3 Data Loss (major) 5 | . . . . 2 . . . . . . . . . . . . . . . 2 . . 1 Misfires 9 | . . 1 . 2 . . . . . . . 1 . 1 . . . . . 4 . . . Alerts 3 | . . . . 1 . . . . . . . . . . . . . . . 2 . . . Misdirections 3 | . . . . . . . . . . . . . . . . . . . . . . . 3 Weapon Failures 7 | . . . . . . . . . . . . . . . . . . . . 6 . . 1 Overload Shots . | . . . . . . . . . . . . . . . . . . . . . . . . Overflow Damage 2559 | . . . . 10 . 7 . 286 12 63 . 180 41 346 . 67 . 192 306 634 9 128 278 Projectiles 2057 | . . . . . . . . . . . . 56 41 346 . 67 . 192 306 634 9 128 278 Explosions 284 | . . . . 10 . 7 . 80 . 63 . 124 . . . . . . . . . . . Melee 218 | . . . . . . . . 206 12 . . . . . . . . . . . . . . Knockbacks 2 | . . . . . . . . 1 1 . . . . . . . . . . . . . . Impact 2 | . . . . . . . . 1 1 . . . . . . . . . . . . . . Kinetic . | . . . . . . . . . . . . . . . . . . . . . . . . Secondary . | . . . . . . . . . . . . . . . . . . . . . . . . Self-Inflicted Damage 253 | . . . . 17 9 55 . . . 10 . 151 . . . . . . 11 . . . . Shots 9 | . . . . 1 1 2 . . . 1 . 3 . . . . . . 1 . . . . Rammed . | . . . . . . . . . . . . . . . . . . . . . . . . Targets Rammed . | . . . . . . . . . . . . . . . . . . . . . . . . Kicked . | . . . . . . . . . . . . . . . . . . . . . . . . Crushed . | . . . . . . . . . . . . . . . . . . . . . . . . Highest Temperature 375 | 45 375 41 112 236 119 42 224 249 108 15 . 142 84 230 218 10 9 57 90 313 265 249 195 Average Temperature 40 | 18 68 15 19 42 20 16 41 62 43 8 . 57 27 37 116 4 4 10 45 73 59 30 26 Received Heat Transfer 5791 | . 207 48 351 . 549 63 864 366 . 54 . 303 36 294 . 120 . 69 695 429 4 . 1339 Effects 4 | . 1 . . . . . . 1 . . . . . . . . . . . 2 . . . Interference 3 | . . . . . . . . 1 . . . . . . . . . . . 2 . . . Matter Decay 1 | . 1 . . . . . . . . . . . . . . . . . . . . . . Siege Activations . | . . . . . . . . . . . . . . . . . . . . . . . . Robots Corrupted 3 | . . . . . . . . . . . . 3 . . . . . . . . . . . Combat Hostiles 3 | . . . . . . . . . . . . 3 . . . . . . . . . . . Parts Fried 5 | . . . . . . . . 3 2 . . . . . . . . . . . . . . Impact Corruptions 6 | . . . . . . . . 5 1 . . . . . . . . . . . . . . Robots Melted 1 | . . . . . . . . . . . . . . . . . . . 1 . . . . Combat Hostiles 1 | . . . . . . . . . . . . . . . . . . . 1 . . . . Parts Melted 17 | . 2 . . . . . . . . . . . . 1 . . . 2 1 6 . 2 3 Heat Transferred 24372 | 111 2257 . . . . . . 100 . . . 826 300 2775 50 1100 375 1620 3125 6458 600 850 3825 Parts Sabotaged . | . . . . . . . . . . . . . . . . . . . . . . . . Parts Stolen . | . . . . . . . . . . . . . . . . . . . . . . . . Parts Stripped . | . . . . . . . . . . . . . . . . . . . . . . . . Power Chain Reactions 1 | . . . . . . . . . . . . 1 . . . . . . . . . . . Alert | -11 -10 -10 -9 -9 -8 -8 -8 -7 -7 -7 -7 -7 -6 -6 -6 -6 -6 -5 -5 -5 -5 -5 -5 ------- Run | Yrd Mat Min Mat Min Mat Gar Mat Fac Low Low Zio Dee Pro Fac Low Low Dat Pro Fac Ext Cet Arc Hub Peak Influence 1736 | 15 213 82 545 281 549 681 859 300 . . . . . 493 . . . . 1160 1544 973 691 1736 Initial 860 | . 9 1 31 161 11 356 331 193 . . . . . 150 . . . . 12 527 860 372 50 Average 412 | 5 72 39 290 103 180 519 524 145 . . . . . 276 . . . . 558 925 934 401 971 Maximum Alert Level 5 | . 1 . 2 1 2 2 3 1 . . . . . 2 . . . . 4 4 3 2 5 Low Security (%) 33 | 100 99 100 36 71 52 . . 73 . . . . . 30 . . . . 15 . . 7 21 Level 1 24 | . . . 34 28 39 39 21 26 . . . . . 49 . . . . 18 . . 46 . Level 2 25 | . . . 29 . 8 60 65 . . . . . . 20 . . . . 38 43 . 45 5 Level 3 8 | . . . . . . . 13 . . . . . . . . . . . 13 17 100 . 29 Level 4 6 | . . . . . . . . . . . . . . . . . . . 13 38 . . 23 Level 5 1 | . . . . . . . . . . . . . . . . . . . . . . . 20 High Security . | . . . . . . . . . . . . . . . . . . . . . . . . Max Security . | . . . . . . . . . . . . . . . . . . . . . . . . Squads Dispatched 81 | . 1 . 6 1 7 . 8 8 . . . . . 15 . . . . 12 9 . . 14 Investigation 31 | . . . 3 1 2 . . 4 . . . . . 10 . . . . 4 4 . . 3 Extermination 9 | . . . . . . . . 3 . . . . . 3 . . . . 2 . . . 1 Reinforcement 16 | . 1 . 3 . 1 . 3 1 . . . . . 2 . . . . 2 1 . . 2 Assault 11 | . . . . . . . 1 . . . . . . . . . . . 1 4 . . 5 Garrison 10 | . . . . . 4 . 4 . . . . . . . . . . . 1 . . . 1 Intercept 4 | . . . . . . . . . . . . . . . . . . . 2 . . . 2 Searches Triggered . | . . . . . . . . . . . . . . . . . . . . . . . . Construction Impeded 1 | . . . . . . . . . . . . . . . . . . . 1 . . . . Haulers Reinforced 2 | . . . . . . . . . . . . . . 1 . . . . 1 . . . . Active Scanning Responses . | . . . . . . . . . . . . . . . . . . . . . . . . Cargo Convoy Interrupts . | . . . . . . . . . . . . . . . . . . . . . . . . Stealth | -11 -10 -10 -9 -9 -8 -8 -8 -7 -7 -7 -7 -7 -6 -6 -6 -6 -6 -5 -5 -5 -5 -5 -5 --------- Run | Yrd Mat Min Mat Min Mat Gar Mat Fac Low Low Zio Dee Pro Fac Low Low Dat Pro Fac Ext Cet Arc Hub Distress Signals 75 | . 2 . . 2 2 . 3 . . . . . . 1 . . . 56 2 2 2 . 3 Communications Jammed . | . . . . . . . . . . . . . . . . . . . . . . . . Distress Signals . | . . . . . . . . . . . . . . . . . . . . . . . . Times Spotted 559 | . 15 6 42 4 52 11 54 23 4 10 . 57 6 39 1 16 5 15 36 66 11 9 77 Peak Tracking Total 37 | . 4 3 4 2 5 8 5 4 2 4 . 37 1 5 1 7 2 5 6 10 5 2 9 Tactical Retreats 18 | . . 1 1 . 3 . 2 . 1 . . . . . . . 1 . 2 5 . . 2 Traps | -11 -10 -10 -9 -9 -8 -8 -8 -7 -7 -7 -7 -7 -6 -6 -6 -6 -6 -5 -5 -5 -5 -5 -5 ------- Run | Yrd Mat Min Mat Min Mat Gar Mat Fac Low Low Zio Dee Pro Fac Low Low Dat Pro Fac Ext Cet Arc Hub Traps Triggered 20 | . . . 2 . 1 . 2 5 . . . . . 5 . . . 1 . 3 . . 1 Indirectly . | . . . . . . . . . . . . . . . . . . . . . . . . Trap Hack Attempts 71 | . . . 1 . . . 25 45 . . . . . . . . . . . . . . . Triggered 1 | . . . . . . . . 1 . . . . . . . . . . . . . . . Disarmed . | . . . . . . . . . . . . . . . . . . . . . . . . Reprogrammed 9 | . . . 1 . . . 4 4 . . . . . . . . . . . . . . . Reused 5 | . . . . . . . . . . . . 4 . . . . 1 . . . . . . Traps Extracted 9 | . . . 1 . . . 4 3 . 1 . . . . . . . . . . . . . Installed 11 | . . . . . . . . . . . . 5 . . . . 6 . . . . . . Triggered 6 | . . . . . . . . . 2 . . . . . 2 2 . . . . . . . Most Traps Carried 11 | . . . 1 1 1 1 5 8 10 11 11 11 6 6 6 6 6 . . . . . . Machines | -11 -10 -10 -9 -9 -8 -8 -8 -7 -7 -7 -7 -7 -6 -6 -6 -6 -6 -5 -5 -5 -5 -5 -5 ---------- Run | Yrd Mat Min Mat Min Mat Gar Mat Fac Low Low Zio Dee Pro Fac Low Low Dat Pro Fac Ext Cet Arc Hub Machines Disabled 53 | . . . 3 . 1 1 2 4 . . . 3 . 8 . . . . 18 4 1 3 5 Max in Single Turn 14 | . . . 1 . 1 1 1 4 . . . 1 . 4 . . . . 14 1 1 1 1 Garrison Access 6 | . . . . . . . . . . . . . . 3 . . . . 1 . . . 2 Network Hub 1 | . . . . . . . . . . . . . . . . . . . . . . . 1 Machines Repaired . | . . . . . . . . . . . . . . . . . . . . . . . . Machines Dismantled . | . . . . . . . . . . . . . . . . . . . . . . . . Machines Sabotaged 1 | . . . . . . . . . . . . . . . . . . . . . . . 1 Overloaded Fab Kills . | . . . . . . . . . . . . . . . . . . . . . . . . Hacking | -11 -10 -10 -9 -9 -8 -8 -8 -7 -7 -7 -7 -7 -6 -6 -6 -6 -6 -5 -5 -5 -5 -5 -5 --------- Run | Yrd Mat Min Mat Min Mat Gar Mat Fac Low Low Zio Dee Pro Fac Low Low Dat Pro Fac Ext Cet Arc Hub Machines Accessed 102 | . 6 1 13 1 14 . 10 8 1 1 . . 1 22 . . 3 . 10 8 1 . 2 Terminals 66 | . 6 . 9 . 11 . 8 2 . . . . 1 13 . . . . 6 8 1 . 1 Fabricators 7 | . . . . . . . . 2 . . . . . 4 . . . . 1 . . . . Repair Stations 11 | . . . 2 . 2 . 2 2 . . . . . 2 . . . . 1 . . . . Recycling Units 1 | . . . . . . . . . . . . . . . . . . . 1 . . . . Scanalyzers 3 | . . . 2 . . . . 1 . . . . . . . . . . . . . . . Garrison Access 7 | . . . . . 1 . . 1 . . . . . 3 . . . . 1 . . . 1 Total Hacks 305 | . 22 1 45 1 50 . 35 22 1 1 . . 1 59 . . 22 . 29 12 1 . 3 Successful 163 | . 10 1 26 1 26 . 16 10 1 1 . . 1 23 . . 22 . 16 7 1 . 1 Failed 140 | . 11 . 18 . 24 . 19 12 . . . . . 36 . . . . 13 5 . . 2 Catastrophic 28 | . . . 3 . 5 . 4 4 . . . . . 10 . . . . 1 1 . . . Database Lockouts 2 | . 1 . 1 . . . . . . . . . . . . . . . . . . . . Manual 121 | . 15 . 27 . 22 . 16 1 . . . . . 24 . . . . 14 . 1 . 1 Terminals 188 | . 22 . 33 . 36 . 24 6 . . . . 1 36 . . . . 16 12 1 . 1 Fabricators 20 | . . . . . . . . 4 . . . . . 11 . . . . 5 . . . . Repair Stations 43 | . . . 4 . 13 . 11 7 . . . . . 5 . . . . 3 . . . . Recycling Units 2 | . . . . . . . . . . . . . . . . . . . 2 . . . . Scanalyzers 11 | . . . 8 . . . . 3 . . . . . . . . . . . . . . . Garrison Access 15 | . . . . . 1 . . 2 . . . . . 7 . . . . 3 . . . 2 Terminal Hacks 82 | . 7 1 10 1 13 . 6 1 1 1 . . 1 6 . . 22 . 4 7 1 . . Record 3 | . . . . . . . . . . . . . 1 . . . 2 . . . . . . Part Schematic 14 | . . . 1 . . . . . . . . . . 1 . . 11 . 1 . . . . Robot Schematic 6 | . . . . . . . . . . . . . . . . . 6 . . . . . . Robot Analysis 7 | . 2 . 2 . 3 . . . . . . . . . . . . . . . . . . Prototype ID Bank 7 | . 3 . 1 . . . . . . . . . . . . . 3 . . . . . . Open Door 11 | . . 1 . 1 . . . . 1 1 . . . . . . . . 1 5 1 . . Machine Index 1 | . . . . . . . . . . . . . . 1 . . . . . . . . . Terminal Index 3 | . 1 . . . 1 . . . . . . . . 1 . . . . . . . . . Alert Level 3 | . . . 1 . 2 . . . . . . . . . . . . . . . . . . Unreport Threat 10 | . 1 . 1 . 3 . 3 . . . . . . 2 . . . . . . . . . Locate Traps 11 | . . . 2 . 2 . 3 . . . . . . 1 . . . . 1 2 . . . Recall Investigation 1 | . . . . . . . . 1 . . . . . . . . . . . . . . . Recall Reinforcements 2 | . . . 1 . . . . . . . . . . . . . . . 1 . . . . Hauler Manifests 2 | . . . 1 . 1 . . . . . . . . . . . . . . . . . . Zone Layout 1 | . . . . . 1 . . . . . . . . . . . . . . . . . . Fabricator Hacks 10 | . . . . . . . . 1 . . . . . 6 . . . . 3 . . . . Load Schematic 8 | . . . . . . . . 1 . . . . . 5 . . . . 2 . . . . Build 2 | . . . . . . . . . . . . . . 1 . . . . 1 . . . . Repair Station Hacks 30 | . . . 4 . 8 . 9 5 . . . . . 2 . . . . 2 . . . . Scan Component 17 | . . . 2 . 4 . 5 3 . . . . . 2 . . . . 1 . . . . Repair 13 | . . . 2 . 4 . 4 2 . . . . . . . . . . 1 . . . . Recycling Unit Hacks . | . . . . . . . . . . . . . . . . . . . . . . . . Scanalyzer 10 | . . . 8 . . . . 2 . . . . . . . . . . . . . . . Insert Component 5 | . . . 4 . . . . 1 . . . . . . . . . . . . . . . Analyze 5 | . . . 4 . . . . 1 . . . . . . . . . . . . . . . Garrison Access Hacks 4 | . . . . . 1 . . . . . . . . 3 . . . . . . . . . Unlock Access 1 | . . . . . 1 . . . . . . . . . . . . . . . . . . Seal Access 3 | . . . . . . . . . . . . . . 3 . . . . . . . . . Unauthorized Hacks 27 | . 3 . 4 . 4 . 1 1 . . . . . 6 . . . . 7 . . . 1 Terminals 18 | . 3 . 4 . 4 . 1 . . . . . . 2 . . . . 3 . . . 1 Assimilate 1 | . . . 1 . . . . . . . . . . . . . . . . . . . . Botnet 13 | . 2 . 3 . 3 . . . . . . . . 2 . . . . 3 . . . . Operators 3 | . 1 . . . 1 . 1 . . . . . . . . . . . . . . . . Sabotage 1 | . . . . . . . . . . . . . . . . . . . . . . . 1 Fabricators 7 | . . . . . . . . 1 . . . . . 4 . . . . 2 . . . . Prioritize 1 | . . . . . . . . . . . . . . . . . . . 1 . . . . Recompile 6 | . . . . . . . . 1 . . . . . 4 . . . . 1 . . . . Repair Stations . | . . . . . . . . . . . . . . . . . . . . . . . . Recycling Units 2 | . . . . . . . . . . . . . . . . . . . 2 . . . . Reject 1 | . . . . . . . . . . . . . . . . . . . 1 . . . . Recyclers 1 | . . . . . . . . . . . . . . . . . . . 1 . . . . Scanalyzers . | . . . . . . . . . . . . . . . . . . . . . . . . Garrison Access . | . . . . . . . . . . . . . . . . . . . . . . . . Data Cores Recovered 3 | . . . . . 1 . . 1 . . . . . . . . . . 1 . . . . Used . | . . . . . . . . . . . . . . . . . . . . . . . . Hacking Detections 78 | . 6 . 10 . 13 . 9 8 . . . . . 18 . . . . 8 5 . . 1 Full Trace Events 17 | . . . 1 . 1 . 1 2 . . . . . 6 . . . . 3 2 . . 1 Feedback Events . | . . . . . . . . . . . . . . . . . . . . . . . . Feedback Blocked . | . . . . . . . . . . . . . . . . . . . . . . . . Robot Schematics Acquired 10 | . . . . . . . . . . . 4 . . . . . 6 . . . . . . Robots Built . | . . . . . . . . . . . . . . . . . . . . . . . . Authchips . | . . . . . . . . . . . . . . . . . . . . . . . . Time . | . . . . . . . . . . . . . . . . . . . . . . . . Total Robot Build Rating . | . . . . . . . . . . . . . . . . . . . . . . . . Part Schematics Acquired 33 | . . . 5 . . . . 1 . . 14 . . 1 . . 11 . 1 . . . . Parts Built 3 | . . . . . . . . . . . . . . 1 . . . . 2 . . . . Authchips 2 | . . . . . . . . . . . . . . 1 . . . . 1 . . . . Time 130 | . . . . . . . . . . . . . . 35 . . . . 95 . . . . Total Part Build Rating 16 | . . . . . . . . . . . . . . 6 . . . . 10 . . . . Parts Repaired 13 | . . . 2 . 4 . 4 2 . . . . . . . . . . 1 . . . . Time 583 | . . . 102 . 178 . 184 94 . . . . . . . . . . 25 . . . . Parts Recycled . | . . . . . . . . . . . . . . . . . . . . . . . . Recycled Matter . | . . . . . . . . . . . . . . . . . . . . . . . . Retrieved Matter . | . . . . . . . . . . . . . . . . . . . . . . . . Retrieved Components . | . . . . . . . . . . . . . . . . . . . . . . . . Parts Scanalyzed 5 | . . . 4 . . . . 1 . . . . . . . . . . . . . . . Part Schematics Acquired 5 | . . . 4 . . . . 1 . . . . . . . . . . . . . . . Parts Damaged . | . . . . . . . . . . . . . . . . . . . . . . . . Bothacking | -11 -10 -10 -9 -9 -8 -8 -8 -7 -7 -7 -7 -7 -6 -6 -6 -6 -6 -5 -5 -5 -5 -5 -5 ------------ Run | Yrd Mat Min Mat Min Mat Gar Mat Fac Low Low Zio Dee Pro Fac Low Low Dat Pro Fac Ext Cet Arc Hub Used RIF Installer . | . . . . . . . . . . . . . . . . . . . . . . . . Robots Hacked 1 | . . 1 . . . . . . . . . . . . . . . . . . . . . Non-combat . | . . . . . . . . . . . . . . . . . . . . . . . . Combat 1 | . . 1 . . . . . . . . . . . . . . . . . . . . . Robot Hacks Applied 1 | . . 1 . . . . . . . . . . . . . . . . . . . . . parse_system 1 | . . 1 . . . . . . . . . . . . . . . . . . . . . Relay Couplers Released 8 | . . . . . . . . . . . . . . . . . . . 3 . . . 5 Machine Destruction 4 | . . . . . . . . . . . . . . . . . . . 3 . . . 1 Programmers 4 | . . . . . . . . . . . . . . . . . . . . . . . 4 Fabnet Peak Effective % . | . . . . . . . . . . . . . . . . . . . . . . . . Robots Rewired . | . . . . . . . . . . . . . . . . . . . . . . . . Allies Hacked . | . . . . . . . . . . . . . . . . . . . . . . . . Hacks Repelled . | . . . . . . . . . . . . . . . . . . . . . . . . Allies | -11 -10 -10 -9 -9 -8 -8 -8 -7 -7 -7 -7 -7 -6 -6 -6 -6 -6 -5 -5 -5 -5 -5 -5 -------- Run | Yrd Mat Min Mat Min Mat Gar Mat Fac Low Low Zio Dee Pro Fac Low Low Dat Pro Fac Ext Cet Arc Hub Total Allies 16 | . . . . 3 . . . . . . 1 . . . . . . . . 7 5 . . Largest Group 6 | . . . . 3 3 . . . . . 1 1 . . . . . . . 5 6 5 4 Highest-Rated Group 605 | . . . . 40 40 . . . . . 99 99 . . . . . . . 163 605 509 384 Highest-Rated Ally 159 | . . . . 16 16 . . . . . 99 99 . . . . . . . 159 132 125 96 Total Orders 4 | . . . . . 2 . . . . . . . . . . . . . . . . 2 . STAY 1 | . . . . . . . . . . . . . . . . . . . . . . 1 . ROAM 1 | . . . . . 1 . . . . . . . . . . . . . . . . . . FOLLOW 2 | . . . . . 1 . . . . . . . . . . . . . . . . 1 . Ally Attacks 234 | . . . . . 15 . . . . . . 27 . . . . . . . 57 57 28 50 Total Damage 7000 | . . . . . 197 . . . . . . 1510 . . . . . . . 1162 1526 799 1806 Kills 51 | . . . . . 1 . . . . . . 15 . . . . . . . 10 7 2 16 Allies Corrupted . | . . . . . . . . . . . . . . . . . . . . . . . . Allies Melted . | . . . . . . . . . . . . . . . . . . . . . . . . Intel | -11 -10 -10 -9 -9 -8 -8 -8 -7 -7 -7 -7 -7 -6 -6 -6 -6 -6 -5 -5 -5 -5 -5 -5 ------- Run | Yrd Mat Min Mat Min Mat Gar Mat Fac Low Low Zio Dee Pro Fac Low Low Dat Pro Fac Ext Cet Arc Hub Robot Analysis Total 141 | . 2 . 2 . 3 . . . . . . . . . . . 134 . . . . . . Derelict Logs Recovered 10 | . . 2 . 1 . . . . 1 1 1 . . . 3 1 . . . . . . . Drone Launches . | . . . . . . . . . . . . . . . . . . . . . . . . Drone Recoveries . | . . . . . . . . . . . . . . . . . . . . . . . . Exploration | -11 -10 -10 -9 -9 -8 -8 -8 -7 -7 -7 -7 -7 -6 -6 -6 -6 -6 -5 -5 -5 -5 -5 -5 ------------- Run | Yrd Mat Min Mat Min Mat Gar Mat Fac Low Low Zio Dee Pro Fac Low Low Dat Pro Fac Ext Cet Arc Hub Turns Passed 42552 | 68 1115 984 2814 1412 3146 309 2993 2061 983 1288 2554 5552 643 3408 526 837 1414 1931 1617 3013 603 1736 1545 Spaces Moved 15418 | 32 502 522 1158 572 1193 127 1108 746 456 569 976 2249 158 1217 242 355 310 406 495 952 184 394 495 Core 8 | . . . . . . . . . . . . 8 . . . . . . . . . . . Treads 99 | . 48 . . . . . . 37 . . . 14 . . . . . . . . . . . Legs 6587 | 32 62 . . . 1 . . . . . . 1284 158 1217 242 355 310 406 495 952 184 394 495 Wheels 8724 | . 392 522 1158 572 1192 127 1108 709 456 569 976 943 . . . . . . . . . . . Hover . | . . . . . . . . . . . . . . . . . . . . . . . . Flight . | . . . . . . . . . . . . . . . . . . . . . . . . Fastest Speed 120 | 120 120 175 175 190 175 210 190 190 205 205 190 180 210 180 210 210 210 210 210 240 240 210 210 Average Speed 212 | 120 166 175 189 190 202 210 210 215 207 221 214 224 210 209 210 210 230 220 239 240 240 238 238 Slowest Speed 1650 | 120 175 175 190 190 470 210 225 570 220 235 235 1650 210 210 210 210 300 240 240 240 240 240 380 Overloaded Moves . | . . . . . . . . . . . . . . . . . . . . . . . . Propulsion Burnouts . | . . . . . . . . . . . . . . . . . . . . . . . . Robots Hopped 2 | . . . . . . . . . 2 . . . . . . . . . . . . . . Cave-ins Triggered 1 | . . . . 1 . . . . . . . . . . . . . . . . . . . Exploration Rate (%) 62 | 4 74 92 99 77 89 28 82 19 67 69 80 89 40 41 42 51 80 46 17 97 66 98 49 Regions Visited 23 Branch Regions 15 Pre-discovered Areas 30 | . . . . . . . . . . . 3 . . . 2 . 25 . . . . . . Known Exits Taken 14 | . . . . . 1 . . 1 1 1 1 1 1 1 1 1 1 1 1 . . 1 . Unknown Exits Taken 8 | 1 1 1 1 1 . . 1 . . . . . . . . . . . . 1 1 . . Scrap Searched 15 | . . 2 . 1 . . . . . 4 4 . 2 . 1 1 . . . . . . . Spaces Dug 243 | . . . 1 41 3 19 1 8 . 24 2 4 . 68 12 . . 21 32 3 . . 4 Terrain Destroyed 852 | . . 7 1 98 48 43 1 35 5 66 2 72 10 154 13 22 3 46 110 59 5 8 44 Melee 16 | . . . 1 . 3 . 1 8 . 1 2 . . . . . . . . . . . . Projectile 404 | . . . . . . . . . . . . 6 10 111 13 22 3 46 77 59 5 8 44 AOE 432 | . . 7 . 98 45 43 . 27 5 65 . 66 . 43 . . . . 33 . . . . Terrain Rammed . | . . . . . . . . . . . . . . . . . . . . . . . . Walls Destroyed . | . . . . . . . . . . . . . . . . . . . . . . . . Machines Disabled . | . . . . . . . . . . . . . . . . . . . . . . . . Actions | -11 -10 -10 -9 -9 -8 -8 -8 -7 -7 -7 -7 -7 -6 -6 -6 -6 -6 -5 -5 -5 -5 -5 -5 --------- Run | Yrd Mat Min Mat Min Mat Gar Mat Fac Low Low Zio Dee Pro Fac Low Low Dat Pro Fac Ext Cet Arc Hub Total 22896 | 46 638 575 1557 860 1658 151 1487 1082 476 591 1424 2682 454 1884 248 400 996 1338 760 1421 324 1172 672 Wait 5007 | 5 7 10 157 263 254 . 124 155 . . 428 206 280 427 . 14 645 828 108 267 117 684 28 Move 15391 | 31 501 521 1157 570 1193 126 1107 745 451 568 975 2248 157 1216 241 354 309 405 494 951 183 393 495 Hop 2 | . . . . . . . . . 2 . . . . . . . . . . . . . . Pick Up 299 | 1 28 10 32 1 15 . 19 6 1 2 4 36 3 40 . 5 3 9 19 23 4 26 12 Fast Attach 88 | 1 2 2 9 . 15 . 9 7 . 3 1 20 . 3 . . . . 1 4 1 3 7 Attach 89 | . 4 6 7 2 8 . 9 3 2 2 4 11 1 5 . . 4 4 5 2 . 4 6 Detach 140 | . 2 1 2 . 1 . 2 3 2 2 2 26 2 14 . . 14 15 12 11 3 15 11 Swap 192 | 1 6 9 33 2 29 6 29 28 4 2 1 15 . 6 2 . 1 2 9 3 2 1 1 Drop 312 | . 14 5 41 . 23 3 17 9 1 4 3 52 3 40 . 5 1 9 14 26 3 29 10 Fire 1239 | 7 74 10 117 21 116 16 145 61 10 7 . 63 8 133 5 22 6 61 98 129 11 17 102 Melee 36 | . . 1 1 . 4 . 1 12 3 1 6 . . . . . 7 . . . . . . Ram . | . . . . . . . . . . . . . . . . . . . . . . . . Kick . | . . . . . . . . . . . . . . . . . . . . . . . . Crush . | . . . . . . . . . . . . . . . . . . . . . . . . Escape Stasis 19 | . . . . 1 . . . 8 . . . . . . . . . 5 . 5 . . . Rewire . | . . . . . . . . . . . . . . . . . . . . . . . . Trap 82 | . . . 1 . . . 25 45 . . . 5 . . . . 6 . . . . . . Miscellaneous . | . . . . . . . . . . . . . . . . . . . . . . . . Route ------- -11/Scrapyard -10/Materials (discovered 3 exits: *Mat / *Min x2) -10/Mines (discovered 2 exits: *Mat x2) -9/Materials (discovered 7 exits: *Mat x3 / *Min x2 / [*Sto x2]) -9/Mines (discovered 2 exits: *Mat / *Zio) -8/Materials (discovered 3 exits: *Fac x2 / Gar) -8/Garrison -8/Materials (discovered 2 exits: *Fac x2) -7/Factory -7/Lower Caves -7/Lower Caves (discovered 2 exits: Fac / *Zio) -7/Zion (discovered 2 exits: *Dee / [*Pro]) -7/Deep Caves -6/Proximity Caves -6/Factory (discovered 2 exits: Fac / *Low) -6/Lower Caves -6/Lower Caves (discovered 2 exits: *Fac / *Dat) -6/Data Miner -5/Proximity Caves -5/Factory (discovered 4 exits: *Fac x2 / *Upp / *Ext) -5/Extension (discovered 2 exits: *Fac / *Cet) -5/Cetus (discovered 2 exits: *Fac / [*Arc]) -5/Archives (discovered 3 exits: *Fac / *Hub x2) -5/Hub_04(d) (discovered 1 exit: *Fac) History --------- Turn | Location | Event 1 | -11/Scrapyard | Discovered new exit (range 2) 69 | -11/Scrapyard | Entered Materials 307 | -10/Materials | Build established: Mutant 481 | -10/Materials | Discovered new exit (range 8) 594 | -10/Materials | Discovered new exit (range 15) 661 | -10/Materials | Central database locked down 867 | -10/Materials | Core integrity fell below 50% 1140 | -10/Materials | Discovered new exit (range 12) 1184 | -10/Materials | Entered Mines 1275 | -10/Mines | Learned Materials terminal intel 1400 | -10/Mines | Met a Derelict who couldn't figure out how to use a Trap Extractor 1490 | -10/Mines | Learned Materials stockpile data 1497 | -10/Mines | Discovered new exit (range 4) 1770 | -10/Mines | A weapon hastily lodged in a ceiling crevice suddenly fell to the ground 1820 | -10/Mines | YI-UF0 nonchalantly dropped a Grenade Launcher on the ground 1910 | -10/Mines | Discovered new exit (range 10) 2153 | -10/Mines | System corruption reached 10% 2168 | -10/Mines | Entered Materials 2168 | -9/Materials | Evolved 2 slots: Utility x1, Weapon x1 2170 | -9/Materials | Loaded intel: 12 terminal locations 2449 | -9/Materials | Build established: Gunner 2530 | -9/Materials | Discovered new exit (range 15) 2594 | -9/Materials | Discovered new exit (range 13) 3030 | -9/Materials | Central database locked down 3462 | -9/Materials | Discovered new exit (range 16) 3659 | -9/Materials | Repaired Imp. Assault Rifle? 4116 | -9/Materials | Discovered new exit (range 16) 4233 | -9/Materials | Repaired Imp. Assault Rifle 4422 | -9/Materials | Discovered new exit (range 8) 4529 | -9/Materials | Discovered new exit (range 14) 4740 | -9/Materials | Discovered new exit (range 16) 4982 | -9/Materials | Entered Mines 4983 | -9/Mines | Assembled infested the area 5567 | -9/Mines | A Derelict revealed a hidden shortcut to a safe place 5656 | -9/Mines | Found a hidden stash of uninstalled traps 5735 | -9/Mines | Crushed by falling debris 5736 | -9/Mines | Core integrity fell below 50% 5822 | -9/Mines | Met a Derelict shopkeep closing up shop 6306 | -9/Mines | Discovered new exit (range 6) 6327 | -9/Mines | Assisted by bots powering up and referring to "LRC-V3" 6394 | -9/Mines | Entered Materials 6394 | -8/Materials | Accompanied by 3 allies 6394 | -8/Materials | Evolved 2 slots: Utility x2 6743 | -8/Materials | Discovered new exit (range 16) 6834 | -8/Materials | Build established: Scavenger-Tank 7397 | -8/Materials | Repaired Imp. Assault Rifle 7930 | -8/Materials | Garrison activated, responded to threat 8040 | -8/Materials | Build established: Gunner 8377 | -8/Materials | Repaired Imp. Assault Rifle 8429 | -8/Materials | Repaired Imp. Assault Rifle 8480 | -8/Materials | Repaired Imp. Assault Rifle 9116 | -8/Materials | Discovered new exit (range 7) 9178 | -8/Materials | Garrison activated, responded to threat 9540 | -8/Materials | Identified exit to Garrison 9540 | -8/Materials | Entered Garrison 9656 | -8/Garrison | Triggered checkpoint 9698 | -8/Garrison | Destroyed 8 combat bots 9823 | -8/Garrison | Discovered new exit (range 12) 9837 | -8/Garrison | Build established: Tank 9849 | -8/Garrison | Entered Materials 10085 | -8/Materials | Garrison activated, responded to threat 10193 | -8/Materials | Lost 5 parts (1p1n1u2w) 10299 | -8/Materials | Repaired Imp. Assault Rifle 10376 | -8/Materials | Repaired System Restoration Module 10463 | -8/Materials | Garrison activated, responded to threat 10504 | -8/Materials | Build established: Scavenger-Gunner 11050 | -8/Materials | Repaired Arm. Treads 11103 | -8/Materials | Repaired Imp. Assault Rifle 11159 | -8/Materials | Core integrity fell below 50% 11399 | -8/Materials | Build established: Gunner 11648 | -8/Materials | Discovered new exit (range 9) 11849 | -8/Materials | First assault squad dispatched 11944 | -8/Materials | Build established: Tank 12409 | -8/Materials | Discovered new exit (range 5) 12842 | -8/Materials | Entered Factory 12842 | -7/Factory | Evolved 2 slots: Utility x2 13264 | -7/Factory | Repaired Enh. Autogun 13519 | -7/Factory | Repaired Broken Imp. Assault Rifle 13689 | -7/Factory | Discovered new exit (range 6) 13743 | -7/Factory | Identified exit to Lower Caves 14553 | -7/Factory | Build established: Trapper-Skirmisher 14903 | -7/Factory | Entered Lower Caves 15122 | -7/Lower Caves | Found Prototype Device 15311 | -7/Lower Caves | Learned 4 Factory zone layouts 15727 | -7/Lower Caves | Attracted the attention of an 0b10 checkpoint 15800 | -7/Lower Caves | Discovered new exit (range 6) 15811 | -7/Lower Caves | Identified exit to Lower Caves 15858 | -7/Lower Caves | Spotted B-75 Beast 15886 | -7/Lower Caves | Entered another Lower Caves area 16135 | -7/Lower Caves | Found Alien Artifact 16135 | -7/Lower Caves | Identified Core Expander 16135 | -7/Lower Caves | Installed Core Expander, added new Utility slot 16995 | -7/Lower Caves | Identified exit to Factory 17056 | -7/Lower Caves | Discovered new exit (range 10) 17172 | -7/Lower Caves | Identified exit to Zion 17174 | -7/Lower Caves | Entered Zion 17286 | -7/Zion | Identified Heart of Steel 17292 | -7/Zion | Found Prototype Device 17292 | -7/Zion | Identified Mobile Refinery Mk. CCLXVII 17696 | -7/Zion | Discovered new exit (range 10) 18076 | -7/Zion | Learned location of Warlord (-5) 18330 | -7/Zion | Heart of Steel transformed into Warbot 18864 | -7/Zion | Learned location of Quarantine (-2) 19002 | -7/Zion | Build established: Trapper-Mutant 19152 | -7/Zion | Received a visual enhancement algorithm 19198 | -7/Zion | Learned 4 Factory zone layouts 19718 | -7/Zion | Discovered new exit (range 5) 19720 | -7/Zion | Saw the warning signs outside the Deep Caves entrance 19724 | -7/Zion | Identified exit to Deep Caves 19728 | -7/Zion | Entered Deep Caves 19728 | -7/Deep Caves | Accompanied by 1 ally (Warbot) 20266 | -7/Deep Caves | Attacked by Z-Imprinter 20271 | -7/Deep Caves | Allies destroyed Z-Imprinter 20385 | -7/Deep Caves | Build established: Mutant 20700 | -7/Deep Caves | Build established: Tank 20860 | -7/Deep Caves | Found Prototype Protection 20860 | -7/Deep Caves | Identified Zio. Weapon Casing 20928 | -7/Deep Caves | Found Zio. Weapon Casing 21213 | -7/Deep Caves | Found Zio. Weapon Casing 21532 | -7/Deep Caves | Discovered new exit (range 7) 21846 | -7/Deep Caves | Spotted AG-12751 21892 | -7/Deep Caves | Destroyed AG-12751 21906 | -7/Deep Caves | Found GOLEM Unit 22011 | -7/Deep Caves | Spotted AG-04504 22047 | -7/Deep Caves | Destroyed AG-04504 22055 | -7/Deep Caves | Found GOLEM Unit 22069 | -7/Deep Caves | Lost 4 parts (4u) 22140 | -7/Deep Caves | Triggered Deep Caves wall 22140 | -7/Deep Caves | Spotted AS-03670 22140 | -7/Deep Caves | Spotted AS-20925 22148 | -7/Deep Caves | Core integrity fell below 50% 22151 | -7/Deep Caves | Destroyed AS-03670 22170 | -7/Deep Caves | Destroyed AS-20925 22187 | -7/Deep Caves | Lost 5 parts (1n4u) 22189 | -7/Deep Caves | Destroyed 36 combat bots 22209 | -7/Deep Caves | Found Prototype Slashing Weapon 22209 | -7/Deep Caves | Identified Longsword +1 22510 | -7/Deep Caves | Build established: Golem 22994 | -7/Deep Caves | Z-Facility disabled 23427 | -7/Deep Caves | Exposed GOLEM chamber 23432 | -7/Deep Caves | Found GOLEM Unit 23438 | -7/Deep Caves | Found GOLEM Unit 23482 | -7/Deep Caves | Found GOLEM Unit 24385 | -7/Deep Caves | Found Zio. Weapon Casing 24544 | -7/Deep Caves | Build established: Tank 24786 | -7/Deep Caves | Identified exit to Proximity Caves 25102 | -7/Deep Caves | Found Zio. Weapon Casing 25280 | -7/Deep Caves | Entered Proximity Caves 25387 | -6/Proximity Caves | Spotter reported a threat 25435 | -6/Proximity Caves | Attracted the attention of an 0b10 checkpoint 25617 | -6/Proximity Caves | Discovered exit to Factory (range 14) 25923 | -6/Proximity Caves | Entered Factory 25923 | -6/Factory | Evolved 2 slots: Power x1, Utility x1 25924 | -6/Factory | Identified exit to Lower Caves 25924 | -6/Factory | Identified exit to Factory 25944 | -6/Factory | Build established: Golem 27533 | -6/Factory | Found Unknown Protection 28105 | -6/Factory | Destroyed 7 combat bots 28212 | -6/Factory | Build established: Hacker-Skirmisher 29154 | -6/Factory | Fabricated Imp. Powered Armor (x1) 29331 | -6/Factory | Entered Lower Caves 29693 | -6/Lower Caves | Encountered a Warlord checkpoint 29826 | -6/Lower Caves | Attracted the attention of an 0b10 checkpoint 29832 | -6/Lower Caves | Discovered new exit (range 11) 29855 | -6/Lower Caves | Identified exit to Lower Caves 29857 | -6/Lower Caves | Entered another Lower Caves area 29935 | -6/Lower Caves | Discovered exit to Factory (range 13) 29993 | -6/Lower Caves | Attracted the attention of an 0b10 outpost 30044 | -6/Lower Caves | Destroyed 7 combat bots 30375 | -6/Lower Caves | Attracted the attention of an 0b10 checkpoint 30400 | -6/Lower Caves | Learned location of 1 exit from Factory 30670 | -6/Lower Caves | Discovered new exit (range 7) 30692 | -6/Lower Caves | Identified exit to Data Miner 30694 | -6/Lower Caves | Entered Data Miner 30694 | -6/Data Miner | Discovered new exit (range 6) 30734 | -6/Data Miner | Met Data Miner 30776 | -6/Data Miner | Learned location of Section 7 (-2) 30776 | -6/Data Miner | Acquired the access code to Warlord's prototype stash 30810 | -6/Data Miner | Received God Mode back door access code from Data Miner 31272 | -6/Data Miner | Build established: Hacker-Golem 31518 | -6/Data Miner | Interfaced with the Data Conduit 31634 | -6/Data Miner | Found Exp. Thermal Shield 32102 | -6/Data Miner | Identified exit to Proximity Caves 32108 | -6/Data Miner | Entered Proximity Caves 32323 | -5/Proximity Caves | Destroyed B-75 Beast 32844 | -5/Proximity Caves | Attracted the attention of an 0b10 checkpoint 32851 | -5/Proximity Caves | Build established: Golem 33878 | -5/Proximity Caves | Discovered exit to Factory (range 10) 34039 | -5/Proximity Caves | Entered Factory 34039 | -5/Factory | Evolved 2 slots: Utility x2 34040 | -5/Factory | Identified exit to Upper Caves 34041 | -5/Factory | Identified exit to Factory 34042 | -5/Factory | Loaded intel: 281 machine locations 34454 | -5/Factory | Build established: Hacker-Golem 34914 | -5/Factory | Fabricated Weapon Mount (x2) 35164 | -5/Factory | Garrison activated, responded to threat 35336 | -5/Factory | Repaired Force Field 35358 | -5/Factory | Discovered exit to Factory (range 15) 35376 | -5/Factory | Intercept squad dispatched 35384 | -5/Factory | Spotted Tracker 35394 | -5/Factory | Destroyed Tracker 35429 | -5/Factory | Spotted Combat Programmer 35442 | -5/Factory | Destroyed Combat Programmer 35588 | -5/Factory | Discovered new exit (range 10) 35653 | -5/Factory | Identified exit to Extension 35656 | -5/Factory | Entered Extension 35657 | -5/Extension | Loaded intel: 28 machine locations 36256 | -5/Extension | First assault squad dispatched 36547 | -5/Extension | Rescued a captive Derelict 36585 | -5/Extension | Rescued a captive Derelict 36586 | -5/Extension | Rescued a captive Derelict 36677 | -5/Extension | Rescued a captive Derelict 36678 | -5/Extension | Rescued a captive Derelict 36881 | -5/Extension | Disrupted transfer network 36993 | -5/Extension | Spotted B-75 Beast 37000 | -5/Extension | Destroyed B-75 Beast 37015 | -5/Extension | Destroyed B-75 Beast 37822 | -5/Extension | Rescued A7 38034 | -5/Extension | Discovered exit to Factory (range 10) 38036 | -5/Extension | Discovered new exit (range 6) 38093 | -5/Extension | Found Prototype Protection 38093 | -5/Extension | Identified Med. Regenerative Plating 38364 | -5/Extension | Rescued a captive Derelict 38669 | -5/Extension | Entered Cetus 38669 | -5/Cetus | Accompanied by 1 ally (A7) 38670 | -5/Cetus | Loaded intel: 24 machine locations 38674 | -5/Cetus | Acquired a Cetus Manufacturing Module code from A7 38700 | -5/Cetus | Spotted Cetus Guard 38700 | -5/Cetus | Spotted Cetus Guard 38705 | -5/Cetus | Spotted Cetus Guard 38705 | -5/Cetus | Spotted Cetus Guard 38711 | -5/Cetus | Destroyed Cetus Guard 38718 | -5/Cetus | Allies destroyed Cetus Guard 38724 | -5/Cetus | Destroyed Cetus Guard 38734 | -5/Cetus | Allies destroyed Cetus Guard 38743 | -5/Cetus | Build established: Golem 38856 | -5/Cetus | Escorted A7 to Cetus Mainframe 38882 | -5/Cetus | Started Cetus Manufacturing Module 38907 | -5/Cetus | Manufactured an Enhanced Grunt 38932 | -5/Cetus | Manufactured an Enhanced Grunt 38957 | -5/Cetus | Manufactured an Enhanced Grunt 38982 | -5/Cetus | Manufactured an Enhanced Grunt 39007 | -5/Cetus | Manufactured an Enhanced Grunt 39054 | -5/Cetus | Discovered new exit (range 16) 39096 | -5/Cetus | Spotted Cetus Guard 39096 | -5/Cetus | Spotted Cetus Guard 39099 | -5/Cetus | Spotted Cetus Guard 39102 | -5/Cetus | Spotted Cetus Guard 39112 | -5/Cetus | Allies destroyed Cetus Guard 39112 | -5/Cetus | Allies destroyed Cetus Guard 39113 | -5/Cetus | Allies destroyed Cetus Guard 39124 | -5/Cetus | Allies destroyed Cetus Guard 39124 | -5/Cetus | Discovered exit to Factory (range 16) 39138 | -5/Cetus | Met Revision 17 39203 | -5/Cetus | Found Exp. Thermal Shield 39272 | -5/Cetus | Entered Archives 39272 | -5/Archives | Accompanied by 5 allies (A7) 39273 | -5/Archives | Loaded intel: 8 machine locations 39277 | -5/Archives | Build established: Commander-Golem 39277 | -5/Archives | Received a hacking code to weaken MAIN.C 39396 | -5/Archives | Discovered new exit (range 16) 39426 | -5/Archives | Discovered new exit (range 14) 39545 | -5/Archives | Discovered exit to Factory (range 16) 41003 | -5/Archives | Identified exit to Hub_04(d) 41008 | -5/Archives | Entered Hub_04(d) 41008 | -5/Hub_04(d) | Accompanied by 4 allies 41009 | -5/Hub_04(d) | Loaded intel: 79 machine locations 41318 | -5/Hub_04(d) | Discovered exit to Factory (range 7) 41457 | -5/Hub_04(d) | Lost 3 allies 41699 | -5/Hub_04(d) | Build established: Golem 41793 | -5/Hub_04(d) | Spotted B-75 Beast 41800 | -5/Hub_04(d) | Garrison activated, responded to threat 41877 | -5/Hub_04(d) | Destroyed B-75 Beast 41908 | -5/Hub_04(d) | First assault squad dispatched 42123 | -5/Hub_04(d) | Network Hub disabled 42135 | -5/Hub_04(d) | Spotted Lightning 42136 | -5/Hub_04(d) | Spotted Lightning 42169 | -5/Hub_04(d) | Destroyed Lightning 42169 | -5/Hub_04(d) | Spotted Lightning 42185 | -5/Hub_04(d) | Destroyed Lightning 42198 | -5/Hub_04(d) | Destroyed Lightning 42214 | -5/Hub_04(d) | Found Exp. EM Disruption Field 42242 | -5/Hub_04(d) | Destroyed 10 combat bots 42246 | -5/Hub_04(d) | Intercept squad dispatched 42254 | -5/Hub_04(d) | Spotted Tracker 42260 | -5/Hub_04(d) | Destroyed Tracker 42262 | -5/Hub_04(d) | Spotted Combat Programmer 42266 | -5/Hub_04(d) | System corruption reached 10% 42444 | -5/Hub_04(d) | Core integrity fell below 50% 42503 | -5/Hub_04(d) | Found Exp. EM Disruption Field 42509 | -5/Hub_04(d) | Found Prototype Energy Cannon 42509 | -5/Hub_04(d) | Identified EMDS 42511 | -5/Hub_04(d) | System corruption reached 30% 42532 | -5/Hub_04(d) | Lost 4 parts (2n1u1w) 42551 | -5/Hub_04(d) | Core integrity fell below 20% 42553 | -5/Hub_04(d) | Self-destructed Last Messages --------------- 42538_ Combat Programmer resets B-60 Warrior, system corruption cleaned. 42538_ EMDS destroyed. 42540_ Penetrated by EMDS Slug. 42540_ K-01 Serf collects debris. 42542_ Asb. Biocell Array destroyed. 42542_ System corrupted by crushing effect (+1). 42542_ Discarded Asb. Alloy Leg. 42542_ Acquired Enh. Biometal Leg. 42543_ GOLEM Unit beginning Asb. Nanovents integration. 42544_ Asb. Nanovents integration complete. 42544_ K-01 Serf collects debris. 42545_ GOLEM Unit beginning Asb. Focal Cannon integration. 42545_ Penetrated by EMDS Slug. 42548_ K-01 Serf collects debris. 42550_ Asb. Nanovents destroyed. 42550_ System corrupted by crushing effect (+1). 42551_ EMDS Slug penetrates Wall. 42552_ Huge Storage Unit destroyed. 42552_ K-01 Serf collects debris. Map ----- +----------------------------------------------------+ | """" # """ #?????????#############+######? | | # " #??????????? #????????# #?????? | | %$! # #??????????? ?????????# #?????? | | = "" # #??????????? ?????????# #?????? | | "" ######++#####???????????#?????????# #?????? | | T" #????# #?????????????????????????# ?????? | | "" #????# #????????????"""????""????###?????? | | "" #????# #???????????????????T"????????????? | | #?#### #?##?###?????"""????""????????????? | | #+########### *#? /??????????????????????????? | | # ???#! [ [=# =# " " #?? ??"""?"""???????????T??? | | # ?###=!!!%%# # " " #?? ???????????????????????? | | # ?# #=%==[!+%[+ " " #?? ??"""?"""?????"""?"""??? | | #?# ##/!=%*!#=%# #?? ???????????????????????? | | ?????#*=%!%[#[=#! [ #?? ??"""?"""?????"""?"""??? | | ?????#[[%%[%#* ########?? ???????????????????????? | | ?????###+####*!##???????? ??"""?"""?????"""?"""??? | | ?????#%%!=!=+|%########## #??????????????????????? | | ?????#[*=!! #%![[ ] #??????????????????????? | | ?????#%"%" !# ! %% ##### #??????????????????????? | | ????##="= |# [###!##???# #???????? ??"?????????? | | ????# #!=### #????#!#??????? ??"????H????? | | ????## # %#?# #????#!#??###? **??"?????????? | | # ###########]!#?# #????#[###;;## ??????????????? | | + %==#?#+######!!!!*% + ?????"?????????? | | ??????# =#?# "" ##@^^!! %#??????"?????????? | | ??????#+## #?# "T =##b!!! !#??????"?????????? | | ?????????# #?#[%=!!##!p^! #????????????????? | | ""??????## #?# """%##*g! !#????????????????? | | ""???"" # ### !=!##!!! #????????????????? | | ""???T" # !% # # "" *"%! ^! #????????????????? | | ""???"" + = # # !!%##! #???????????????"" | | ????? # # # ""!#%! #????????????????? | | ????##### !!# # *#!*! #???????????????"" | | ???????# =%#"# !"!## #????????????????? | | ???????#^ % =[ # %## g ==!#????????????????? | | ???????# ^ # !!=##%[ igk#????????????????? | | ???????# ^ # !! #";;#t##/#####????????????? | | ???????# # ! # #????????????? | | ???????# ^ + # w #????????????? | | ?????# ^ " "" # ] # * "" """" #????????????? | | ?????# ""T"" #####"#!%""" """" ?????????????? | | "????### """ #### #==""" """"? #????????????? | | ""???? ] %=%!!"" """"???????????????? | | """??+ = %**=* ??????????????? | | ""???######### ### "#!=*[! """" #????????????? | | "????????????##+###?#+## ""%! """"???????????????? | | ???????????????????? ?# T[=! """"???????????????? | | ???????????????????? ?#""" """"???????????????? | | ??????????????????? ?# ????????????????? | +----------------------------------------------------+ Best States ------------- Heat Dissipation 85 Coolant Potential 50 Energy Generation 45 Energy Capacity 2350 Matter Stores 300 Matter Capacity 300 Sight Range 16 Robot Scan Range 16 Terrain Scan Density 10 Additional Mass Support 20 Armor Coverage 1225 Resistance: KI 30 Resistance: TH 30 Resistance: EX 15 Resistance: EM 75 Resistance: I 15 Resistance: S 15 Resistance: P 15 Weapon Shielding 100 Phase Shifting 15 Evasion (%) 55 Targeting Accuracy 28 Core Analysis 8 Recoil Reduction 2 Offensive Hacking 22 Defensive Hacking 12 Authchip Count 4 Trap Extractor Capacity 6 Item Schematics ----------------- Huge Storage Unit | -9/Materials | Hacked Cld. Ion Engine | -9/Materials | Scanalyzed Structural Scanner | -9/Materials | Scanalyzed Lgt. Armor Plating | -9/Materials | Scanalyzed Signal Interpreter | -9/Materials | Scanalyzed Med. Armor Plating | -7/Factory | Scanalyzed Mak. Shrapnel Gun | -7/Zion | Archive 0b10 Decoder Chip [Skirmisher] | -7/Zion | Archive Powered Hammer | -7/Zion | Archive Drone Bay | -7/Zion | Archive Adv. Terrain Scan Processor | -7/Zion | Archive Arc Thrower | -7/Zion | Archive Matter Filter | -7/Zion | Archive Field Propulsion Drive | -7/Zion | Archive Adv. Cooling System | -7/Zion | Archive Imp. Deuterium Engine | -7/Zion | Archive Imp. Reaction Control System | -7/Zion | Archive Transmission Jammer | -7/Zion | Archive Focal Shield | -7/Zion | Archive Mak. Leg | -7/Zion | Archive Imp. Powered Armor | -6/Factory | Hacked Combat Drone Bay | -6/Data Miner | Free Lgt. Regenerative Plating | -6/Data Miner | Free Enh. Armored Leg | -6/Data Miner | Free Prc. Energy Filter | -6/Data Miner | Free Hvy. Gatling Laser | -6/Data Miner | Free Field Propulsion Array | -6/Data Miner | Free Quantum Capacitor | -6/Data Miner | Free Adv. Datajack | -6/Data Miner | Free Nuclear Pulse Array | -6/Data Miner | Free Adv. Coolant Injector | -6/Data Miner | Free Dispersion Rifle | -6/Data Miner | Free Weapon Mount | -5/Factory | Hacked Robot Schematics ------------------ B-48 Gladiator | -7/Zion | Archive H-55 Commando | -7/Zion | Archive R-06 Scavenger | -7/Zion | Archive H-88 Terminator | -7/Zion | Archive B-60 Warrior | -6/Data Miner | Free L-41 Fighter | -6/Data Miner | Free R-10 Processor | -6/Data Miner | Free W-44 Eye | -6/Data Miner | Free A-15 Conveyor | -6/Data Miner | Free L-61 Swordsman | -6/Data Miner | Free Fabricated ------------ Imp. Powered Armor | x1 | -6/Factory | Authchip Weapon Mount | x2 | -5/Factory | Authchip Alien Tech Used ----------------- Core Expander Achievements -------------- None Challenges ------------ None Game ------ Seed CouplerHelicalShield Manual? 0 Play Time 06:11:25 Cumulative 276.2 hours Start 2024.05.01 @ 17:09:31 End 2024.05.03 @ 20:30:33 Sessions 9 Manual Loads 0 Difficulty Rogue Special Mode None Game No. 173 Rogue 29 Adventurer 144 Explorer 0 Win Type - Total 4 Types 2/0/1/1/0/0/0/0/0 Lore% 63 Gallery% 75 Achievement% 62 Wizard Run 0 Options --------- Layout 0 ASCII 0 Keyboard 0 Movement Mouse Keybinds 0 Fullscreen 2 Font 20/SmallcapsGlow Map View 66x50 Zoom Use 0% Tactical HUD 1 Map Filters NONE Filters NONE Steam X RUN: 48e0326c-152a-4ad6-b9ef-74f8dd72ac63